bitfinex/quotes_ETHUSD_20241212
["timestamp","ask_amount","ask_price","bid_price","bid_amount"]
[1733997474932,10.24432105,3931.3,3931.2,13.31797814]
[1733997475342,10.24432105,3931.3,3931.2,13.30959905]
[1733997475498,10.24432105,3931.3,3931.2,9.09805654]
[1733997475906,10.24432105,3931.3,3931.2,7.12303189]
[1733997476106,10.24432105,3931.3,3931.2,4.57928189]
[1733997476348,10.24432105,3931.3,3931.2,6.69460308]
[1733997476564,12.26373254,3931.3,3931.2,3.1660114]
[1733997476717,12.26373254,3931.3,3931.2,1.05795245]
[1733997477653,13.81373254,3931.3,3931.2,1.05795245]
[1733997479119,13.81373254,3931.3,3931.1,1.05795245]
[1733997480813,1.028,3931.1,3930.9,1.05795245]
[1733997481142,1.028,3931.1,3930.5,5.11532119]
[1733997481143,1.028,3931.1,3930.8,1.05795245]
[1733997481644,1.028,3931.1,3930.9,1.05795245]
[1733997481802,1.028,3931.1,3930.8,1.05795245]
[1733997482244,1.028,3931.1,3930.7,1.05795245]
[1733997482644,1.028,3931.1,3930.8,1.05795245]
[1733997483054,1.028,3931.1,3930.7,1.05795245]
[1733997483289,1.028,3931.1,3930.4,3.0]
[1733997484047,1.028,3931.1,3930.8,1.05766684]
[1733997484266,1.028,3931.1,3930.7,4.05766684]
[1733997484550,2.578,3931.1,3930.8,1.05766684]
[1733997484950,2.578,3931.1,3930.7,1.05766684]
[1733997485447,2.578,3931.1,3930.8,1.05766684]
[1733997485747,2.578,3931.1,3930.6,4.58650027]
[1733997485748,2.578,3931.1,3930.7,1.05766684]
[1733997485953,1.55,3931.1,3930.6,4.05766684]
[1733997486186,1.0428,3931.0,3930.6,1.05766684]
[1733997487753,2.5928,3931.0,3930.6,1.05766684]
[1733997488104,2.5928,3931.0,3930.7,1.05766684]
[1733997488265,2.5928,3931.0,3930.6,1.05766684]
[1733997489264,2.5928,3931.0,3930.4,1.05766684]
[1733997489265,0.966,3930.9,3930.4,1.05766684]
[1733997489463,1.0119,3930.8,3930.3,1.05766684]
[1733997489756,3.5530881,3931.0,3930.1,1.58650027]
[1733997489757,1.0119,3930.7,3930.1,1.05766684]
[1733997489959,1.0119,3930.7,3930.2,1.05766684]
[1733997490156,1.0119,3930.7,3930.1,1.05766684]
[1733997491092,2.5619,3930.7,3930.1,1.05766684]
[1733997491503,2.54414,3930.6,3929.9,1.05766684]
[1733997491710,0.985,3930.5,3929.7,1.05766684]
[1733997492801,0.985,3930.5,3929.9,2.54457]
[1733997493298,0.985,3930.5,3929.7,3.60237684]
[1733997493806,0.985,3930.5,3929.8,3.0]
[1733997494478,2.535,3930.5,3929.8,3.0]
[1733997494658,2.535,3930.5,3929.6,1.05766684]
[1733997494992,2.535,3930.5,3929.9,3.0]
[1733997495398,2.535,3930.5,3929.8,3.0]
[1733997495698,2.535,3930.5,3930.0,2.54452]
[1733997496365,2.535,3930.5,3929.9,3.0]
[1733997497366,2.535,3930.5,3929.9,2.54453]
[1733997497795,4.085,3930.5,3929.9,2.54453]
[1733997499756,4.085,3930.5,3929.9,2.54459]
[1733997499961,4.085,3930.5,3930.1,2.54445]
[1733997501191,5.635,3930.5,3930.1,2.54445]
[1733997502495,1.0045,3930.1,3929.1,1.05766684]
[1733997502715,1.0045,3930.0,3928.8,1.05766684]
[1733997502862,1.0045,3930.0,3928.6,2.04216684]
[1733997503284,0.9832,3929.8,3928.5,1.05766684]
[1733997503490,0.9832,3929.8,3928.7,2.5453]
[1733997504003,0.9832,3929.8,3928.9,3.0]
[1733997504601,1.55,3929.8,3928.9,3.0]
[1733997504903,2.54473,3929.7,3928.7,3.0]
[1733997505102,1.97645023,3929.8,3928.2,4.05766684]
[1733997505103,2.78094949,3929.6,3928.2,4.05766684]
[1733997505393,2.78094949,3929.6,3928.1,3.86695656]
[1733997505394,0.23619028,3929.5,3928.5,3.0]
[1733997505569,2.54479,3929.6,3928.5,3.0]
[1733997505770,3.19052894,3929.5,3928.5,3.0]
[1733997506099,2.954339,3929.5,3928.5,3.0]
[1733997507485,0.9508,3929.4,3928.5,3.0]
[1733997507764,0.9508,3929.4,3927.8,12.39355684]
[1733997507765,0.9508,3929.2,3927.8,8.79]
[1733997507964,0.9508,3929.1,3928.0,2.54581]
[1733997508862,0.9508,3929.1,3928.1,2.54572]
[1733997509305,0.9508,3929.1,3928.2,3.0]
[1733997509602,0.9508,3929.1,3928.3,3.0]
[1733997510023,0.9508,3929.1,3928.2,2.54566]
[1733997510223,0.9508,3929.1,3928.4,3.0]
[1733997511278,2.75088,3929.1,3928.2,3.0]
[1733997511921,1.80008,3929.1,3928.2,3.0]
[1733997512078,0.9957,3929.0,3928.2,3.0]
[1733997513827,1.0326,3928.9,3927.9,3.0]
[1733997514123,1.0326,3928.8,3927.9,3.0]
[1733997514328,0.9694,3928.6,3927.9,3.0]
[1733997514846,2.5455,3928.5,3927.4,5.5462]
[1733997515001,0.9681,3928.4,3927.4,5.5462]
[1733997517531,0.9626,3928.3,3927.3,3.0]
[1733997517827,0.9626,3928.2,3927.3,2.54627]
[1733997518028,0.9626,3928.2,3927.5,3.0]
[1733997521308,0.9626,3928.2,3927.9,2.54588]
[1733997522198,0.9626,3928.2,3928.1,2.54576]
[1733997523838,1.0311,3929.0,3928.0,0.9665]
[1733997524043,3.1,3929.1,3928.9,2.54524]
[1733997525258,3.1,3929.1,3928.7,2.54535]
[1733997525462,3.1,3929.1,3928.8,3.0]
[1733997526336,3.1,3929.1,3928.1,3.0]
[1733997526533,0.9679,3929.0,3928.1,3.0]
[1733997526871,0.9679,3929.0,3928.0,2.54576]
[1733997527069,0.23573975,3928.9,3928.0,2.54576]
[1733997527287,1.20363975,3928.8,3928.0,2.54576]
[1733997527488,0.9679,3928.8,3928.0,2.54576]
[1733997528187,0.9679,3928.4,3926.8,2.54653]
[1733997528385,0.23580462,3928.7,3926.7,2.13296342]
[1733997528386,0.9679,3928.1,3927.0,2.54647]
[1733997528591,0.23580462,3928.3,3926.7,1.07529658]
[1733997528592,0.9679,3928.0,3926.8,2.5466]
[1733997528885,0.9679,3928.0,3926.7,1.07529658]
[1733997529084,0.873113,3928.8,3926.8,2.54659]
[1733997529085,0.9879,3927.9,3926.8,2.54659]
[1733997529294,0.9879,3927.7,3926.8,2.54659]
[1733997529649,0.9879,3927.7,3927.0,3.0]
[1733997529883,0.9879,3927.7,3926.7,1.07529658]
[1733997530048,0.9879,3927.7,3927.1,3.0]
[1733997530560,0.9879,3927.7,3926.6,3.0]
[1733997530760,0.23598114,3927.6,3926.6,3.0]
[1733997530964,0.9879,3927.7,3926.6,3.0]
[1733997531163,0.23598113,3927.6,3926.6,3.0]
[1733997531369,0.55197294,3928.5,3926.8,3.0]
[1733997531370,0.23598113,3927.5,3926.8,3.0]
[1733997531690,0.9745,3927.4,3926.8,2.54659]
[1733997531872,0.9745,3927.4,3926.9,3.0]
[1733997533003,0.9745,3927.4,3926.6,3.0]
[1733997533206,0.9745,3927.4,3927.0,3.0]
[1733997536268,0.23617335,3927.3,3926.9,5.0]
[1733997536470,0.23617353,3927.2,3926.9,5.0]
[1733997536713,0.9697,3927.1,3926.9,5.0]
[1733997543958,1.0508,3927.0,3926.9,5.0]
[1733997544457,1.28450905,3927.0,3926.9,5.0]
[1733997544861,1.0508,3927.0,3926.9,5.0]
[1733997545242,1.28450748,3927.0,3926.9,5.0]
[1733997546723,1.6583063,3927.0,3926.9,5.0]
[1733997547029,4.38651775,3927.0,3926.9,5.0]
[1733997551256,4.38573825,3927.0,3926.9,5.0]
[1733997551458,4.15238179,3927.0,3926.9,5.0]
[1733997551757,1.83926856,3927.0,3926.9,5.0]
[1733997551966,1.28415658,3927.0,3926.9,5.0]
[1733997554031,3.83062658,3927.0,3926.9,5.0]
[1733997554243,4.20422555,3927.0,3926.9,5.0]
[1733997554799,4.46900685,3927.0,3926.9,5.0]
[1733997554957,4.62812177,3927.0,3926.9,5.0]
[1733997555256,6.07939455,3927.0,3926.9,5.0]
[1733997555458,6.87980169,3927.0,3926.9,5.0]
[1733997555658,6.49046691,3927.0,3926.9,5.0]
[1733997556155,0.9799,3926.7,3924.8,0.9698]
[1733997556363,2.54744,3925.6,3924.4,2.54811]
[1733997556571,0.23335658,3925.5,3924.4,2.54811]
[1733997556769,2.54744,3925.6,3924.4,2.54811]
[1733997556770,0.23335658,3925.4,3924.4,2.54811]
[1733997556932,0.23335658,3925.3,3924.4,2.54811]
[1733997557137,0.23335658,3925.2,3924.2,0.9623]
[1733997557349,2.54744,3925.6,3924.5,2.54809]
[1733997557350,2.900174,3925.6,3924.5,2.54809]
[1733997557538,0.352734,3925.6,3924.4,2.54814]
[1733997557734,0.6018084,3925.5,3924.4,2.54814]
[1733997557972,0.23146477,3925.4,3924.4,2.54814]
[1733997558173,0.23146477,3925.3,3924.4,2.54814]
[1733997558338,0.23146477,3925.2,3924.4,2.54814]
[1733997558558,2.54738,3925.6,3924.4,2.54814]
[1733997558764,0.97031645,3925.5,3924.4,2.54814]
[1733997559064,0.23141196,3925.4,3924.4,2.54814]
[1733997559387,0.23141196,3925.3,3924.4,2.54814]
[1733997559594,0.23141196,3925.2,3924.4,2.54814]
[1733997559804,0.36864535,3925.5,3924.4,2.54814]
[1733997560096,0.62092371,3925.4,3924.4,2.54814]
[1733997560288,0.23133118,3925.3,3924.4,2.54814]
[1733997560490,0.38959253,3925.4,3924.4,2.54814]
[1733997560786,0.23126777,3925.3,3924.4,2.54814]
[1733997560951,0.38959253,3925.4,3924.4,2.54814]
[1733997561153,0.23126796,3925.3,3924.4,2.54814]
[1733997561353,0.38959253,3925.4,3924.4,2.54814]
[1733997561575,0.23122085,3925.3,3924.4,2.54814]
[1733997561795,0.38959253,3925.4,3924.4,2.54814]
[1733997561950,1.0102,3925.0,3923.4,0.24478209]
[1733997562154,1.0102,3924.8,3923.3,1.0194]
[1733997562406,2.5481,3924.5,3923.3,3.56827]
[1733997562602,2.92705209,3924.5,3923.3,1.0194]
[1733997562761,1.0049,3924.4,3923.3,1.0194]
[1733997562956,3.55306,3924.4,3923.3,1.0194]
[1733997563267,1.0049,3924.4,3923.4,3.0]
[1733997564398,1.0049,3924.4,3923.6,2.54865]
[1733997564608,1.0049,3924.4,3923.7,3.0]
[1733997565090,1.0049,3924.4,3923.7,2.54857]
[1733997565616,1.0049,3924.4,3923.8,2.54854]
[1733997566122,1.0049,3924.4,3923.4,2.5488]
[1733997566284,0.23085821,3924.3,3923.5,2.54874]
[1733997566484,0.23085821,3924.2,3923.5,2.54874]
[1733997566785,1.0049,3924.4,3923.5,2.54874]
[1733997566981,0.23076742,3924.3,3923.6,2.54867]
[1733997567349,1.0049,3924.4,3923.6,2.54867]
[1733997567483,0.39118924,3924.3,3923.3,2.54883]
[1733997567681,1.0283,3924.1,3923.3,2.54883]
[1733997568000,0.23069746,3924.0,3923.1,2.549]
[1733997568199,0.23071141,3923.9,3922.7,1.6008]
[1733997568398,0.36913826,3924.2,3922.9,2.54913]
[1733997568399,1.26110698,3923.8,3922.9,2.54913]
[1733997568577,1.0305,3923.8,3922.9,2.54913]
[1733997568782,1.0305,3923.8,3922.7,1.0508]
[1733997568783,1.0305,3923.8,3923.0,2.54906]
[1733997569641,1.0305,3923.8,3923.1,2.54898]
[1733997569960,0.26488764,3923.7,3923.1,2.54898]
[1733997570319,0.26488764,3923.7,3922.8,3.0]
[1733997570811,0.26488764,3923.7,3922.8,2.54919]
[1733997571120,2.54816,3924.4,3922.8,2.54919]
[1733997571121,0.9875,3924.1,3923.6,2.54867]
[1733997571319,0.9875,3924.1,3923.7,2.54857]
[1733997572457,0.9875,3924.1,3922.1,1.68237988]
[1733997572657,0.9694,3924.0,3923.0,2.54906]
[1733997572954,0.2305091,3923.9,3922.8,2.54919]
[1733997573160,1.2837091,3923.8,3922.8,2.54919]
[1733997573360,1.0532,3923.8,3922.8,2.54919]
[1733997573696,1.0532,3923.8,3922.5,3.0]
[1733997573697,0.23050796,3923.7,3923.0,2.54906]
[1733997573826,0.1283708,3923.7,3922.8,2.54918]
[1733997574278,0.1283708,3923.7,3922.9,2.5491]
[1733997574968,0.1283708,3923.7,3923.1,2.54894]
[1733997575270,1.0532,3923.8,3923.5,2.54873]
[1733997575869,1.0532,3923.8,3923.1,2.549]
[1733997576371,1.0532,3923.8,3922.8,0.55]
[1733997576683,1.0532,3923.8,3923.3,2.54887]
[1733997577034,1.0532,3923.8,3922.8,0.55]
[1733997577035,1.0532,3923.8,3923.4,2.5488]
[1733997577231,0.9929,3924.6,3923.1,3.9568]
[1733997577457,0.58966656,3924.5,3923.5,3.0]
[1733997577667,0.9929,3924.6,3923.9,2.54842]
[1733997577972,0.22679771,3924.5,3923.7,2.54861]
[1733997578134,0.22679771,3924.4,3923.5,4.02]
[1733997578334,1.0314,3924.2,3923.2,2.54893]
[1733997578593,1.0314,3924.2,3923.3,3.0]
[1733997578594,0.22679771,3924.1,3923.3,3.0]
[1733997578889,1.42688315,3924.2,3923.3,3.0]
[1733997578890,0.22679771,3924.0,3923.3,5.54887]
[1733997579041,1.0314,3924.2,3923.3,5.54887]
[1733997579378,0.22685498,3924.1,3923.3,5.54887]
[1733997579680,0.22692466,3924.0,3923.3,5.54887]
[1733997579975,0.2269244,3923.9,3923.1,3.9735]
[1733997580271,3.57969,3924.2,3923.1,6.52249]
[1733997580469,0.59018916,3924.1,3923.1,5.54899]
[1733997580676,0.59018888,3924.0,3923.1,5.54899]
[1733997580885,0.22698782,3923.9,3923.1,5.54899]
[1733997581090,0.22698782,3923.8,3923.1,5.54899]
[1733997581372,1.0314,3924.2,3923.3,3.0]
[1733997581594,0.590235,3924.1,3923.3,3.0]
[1733997581733,0.22701346,3924.0,3923.3,3.0]
[1733997581932,0.22701346,3923.9,3923.3,3.0]
[1733997582157,0.22701346,3923.8,3923.3,3.0]
[1733997582472,0.22726844,3923.7,3923.3,3.0]
[1733997582681,0.22726844,3923.6,3923.3,3.0]
[1733997582863,1.0314,3924.2,3923.3,3.0]
[1733997583178,0.94886169,3924.1,3923.3,3.0]
[1733997583342,0.59121724,3924.0,3923.3,3.0]
[1733997583542,0.22726834,3923.9,3923.3,3.0]
[1733997583875,0.22726834,3923.9,3923.2,2.54893]
[1733997583876,0.22726834,3923.8,3923.2,2.54893]
[1733997584072,0.357964,3924.1,3923.0,2.81008199]
[1733997584073,0.22726834,3923.7,3923.0,2.81008199]
[1733997584257,2.92634777,3924.5,3923.0,2.81008199]
[1733997584258,1.25316834,3923.6,3923.0,2.81008199]
[1733997584595,0.22726834,3923.5,3922.8,1.5367]
[1733997584779,0.22726834,3923.4,3922.9,2.54911]
[1733997584934,1.0259,3923.6,3922.6,2.81008199]
[1733997584935,0.22726834,3923.3,3922.6,2.81008199]
[1733997585141,1.383342,3923.6,3922.7,2.54924]
[1733997585355,0.59210366,3923.5,3922.7,2.54924]
[1733997585640,0.22766038,3923.4,3922.8,2.54917]
[1733997585980,1.0259,3923.6,3922.9,3.0]
[1733997586162,0.22777692,3923.3,3922.9,3.0]
[1733997586367,0.22777692,3923.2,3922.9,3.0]
[1733997586568,0.22777692,3923.1,3922.7,3.0]
[1733997586743,1.383345,3923.6,3922.6,2.81008199]
[1733997586744,0.22777692,3923.0,3922.6,2.81008199]
[1733997586936,0.22777692,3922.9,3922.6,5.35938199]
[1733997587140,1.0259,3923.6,3922.6,5.35938199]
[1733997587358,0.98783482,3923.5,3922.7,2.54924]
[1733997587684,1.0259,3923.6,3922.8,2.54918]
[1733997587685,0.592419,3923.4,3922.8,2.54918]
[1733997587988,0.592419,3923.3,3922.8,2.54918]
[1733997588148,0.22785346,3923.2,3922.8,2.54918]
[1733997588347,0.22785346,3923.1,3922.8,2.54918]
[1733997588580,1.25645346,3923.0,3922.3,2.54948]
[1733997588784,0.22785346,3922.9,3922.3,2.54948]
[1733997589001,1.0286,3923.0,3922.1,2.54963]
[1733997589002,0.22785346,3922.8,3922.1,2.54963]
[1733997589146,0.22793735,3922.8,3922.2,2.54956]
[1733997589348,0.22793735,3922.7,3922.2,2.54956]
[1733997589577,1.0286,3923.0,3922.0,0.55]
[1733997589780,0.2280129,3922.9,3922.4,2.54945]
[1733997590051,0.2280129,3922.8,3922.4,2.54945]
[1733997590301,0.2280129,3922.7,3922.1,2.54959]
[1733997590448,0.2280129,3922.6,3922.1,2.54959]
[1733997590651,0.2280129,3922.5,3922.0,3.0]
[1733997590981,0.2280129,3922.4,3922.0,3.0]
[1733997591144,0.36481812,3922.9,3922.0,3.0]
[1733997591351,3.57768,3923.0,3922.0,3.0]
[1733997591352,0.62226081,3922.8,3922.0,3.0]
[1733997591546,0.228011,3922.7,3922.0,3.0]
[1733997591796,0.228011,3922.6,3922.0,3.0]
[1733997592085,0.22806144,3922.5,3922.0,3.0]
[1733997592286,0.39424981,3922.8,3922.0,3.0]
[1733997592487,0.62527755,3922.7,3922.0,3.0]
[1733997592688,0.22808457,3922.6,3922.0,10.54971]
[1733997592865,0.39719298,3922.7,3922.0,10.54971]
[1733997593188,0.22802555,3922.6,3922.2,2.54953]
[1733997593507,1.0286,3923.0,3922.2,2.54953]
[1733997593652,0.22799889,3922.9,3922.2,2.54953]
[1733997593848,0.22799889,3922.8,3922.2,2.54953]
[1733997594185,0.22799889,3922.7,3922.2,2.54953]
[1733997594350,1.0286,3923.0,3922.2,2.54953]
[1733997594553,2.54921,3922.8,3922.0,5.0]
[1733997594895,1.66025867,3922.7,3922.0,5.0]
[1733997595056,0.59275783,3922.6,3922.0,5.0]
[1733997595257,1.29548541,3922.5,3922.0,5.0]
[1733997595451,1.0675,3922.5,3922.0,5.0]
[1733997595666,0.22793852,3922.4,3922.0,5.0]
[1733997595880,0.22793912,3922.3,3922.0,5.0]
[1733997596204,1.429171,3922.5,3922.0,5.0]
[1733997596507,1.0675,3922.5,3922.0,5.0]
[1733997596686,0.22789211,3922.4,3922.0,5.0]
[1733997596882,1.0675,3922.5,3922.0,5.0]
[1733997597192,1.0695,3922.3,3922.0,5.0]
[1733997597403,0.22221721,3922.2,3922.0,5.0]
[1733997597605,0.12917172,3922.2,3922.0,5.0]
[1733997598323,1.0695,3922.3,3922.0,5.0]
[1733997600181,1.05474,3922.3,3922.0,5.0]
[1733997600514,1.05474,3922.3,3922.2,2.54958]
[1733997600821,2.549,3923.1,3922.0,7.5497]
[1733997601110,2.54891,3923.3,3922.0,5.0]
[1733997601314,2.54927,3922.7,3922.0,5.0]
[1733997601509,2.54934,3922.6,3922.0,5.0]
[1733997601875,0.22209592,3922.5,3922.0,5.0]
[1733997602088,2.54934,3922.6,3922.0,5.0]
[1733997602089,0.22209592,3922.4,3922.0,5.0]
[1733997602294,2.54921,3922.8,3922.0,5.0]
[1733997602475,0.83233572,3922.7,3922.0,5.0]
[1733997602681,0.22208258,3922.6,3922.0,5.0]
[1733997602882,0.254921,3922.7,3922.0,7.54968]
[1733997603096,0.3553358,3923.1,3922.0,5.0]
[1733997603288,1.56982184,3923.0,3922.1,2.54962]
[1733997603503,0.22208604,3922.9,3922.2,2.54958]
[1733997603677,0.22208604,3922.8,3922.2,2.54958]
[1733997604017,0.9924,3923.0,3922.3,2.54951]
[1733997604523,0.22208119,3922.9,3922.3,2.54951]
[1733997604688,0.9924,3923.0,3922.3,2.54951]
[1733997604890,0.35683911,3922.9,3922.3,2.54951]
[1733997605090,0.13477091,3922.9,3922.3,2.54951]
[1733997605309,0.9924,3923.0,3922.0,5.0]
[1733997605482,0.22208296,3922.9,3922.4,2.54945]
[1733997605678,0.9998,3923.0,3922.0,5.0]
[1733997605891,0.9998,3922.6,3922.0,5.0]
[1733997606214,0.57699166,3922.5,3922.0,5.0]
[1733997606379,0.354911,3922.5,3922.0,7.54969]
[1733997606714,0.9998,3922.6,3922.0,5.0]
[1733997606888,0.35532633,3923.5,3922.6,2.54928]
[1733997607086,0.35532633,3923.5,3922.2,2.54958]
[1733997607087,1.23008109,3923.4,3922.4,2.54945]
[1733997607286,1.60798179,3923.4,3922.5,2.54933]
[1733997607493,0.22209968,3923.3,3922.5,2.54933]
[1733997607822,1.38588211,3923.4,3922.1,5.35973199]
[1733997608001,0.22212215,3923.3,3922.1,3.55]
[1733997608314,0.22212215,3923.2,3922.3,2.5495]
[1733997608516,0.41568843,3923.2,3922.3,2.5495]
[1733997609221,1.28040859,3923.1,3922.1,3.0]
[1733997609401,0.76626812,3924.1,3922.1,3.0]
[1733997609402,1.0582,3922.9,3922.1,3.0]
[1733997609610,0.22220859,3922.8,3922.0,5.0]
[1733997609802,1.0582,3922.6,3922.0,5.0]
[1733997610115,0.22225231,3922.5,3922.0,5.0]
[1733997610323,1.0582,3922.6,3922.0,7.5497]
[1733997610680,1.0582,3922.6,3922.0,5.0]
[1733997616018,1.0582,3922.6,3922.0,7.54971]
[1733997617599,1.0582,3922.6,3922.0,5.0]
[1733997617802,1.19930609,3922.6,3922.0,5.0]
[1733997618012,0.22053718,3922.5,3922.0,5.0]
[1733997618186,1.19930609,3922.6,3922.0,5.0]
[1733997618385,0.9752,3922.4,3922.0,5.0]
[1733997618633,2.54964,3922.2,3922.0,5.0]
[1733997618786,0.22060173,3922.1,3922.0,5.0]
[1733997618991,1.54876151,3922.1,3922.0,5.0]
[1733997619246,4.09841151,3922.1,3922.0,5.0]
[1733997625831,4.09750312,3922.1,3922.0,5.0]
[1733997626053,1.45854287,3922.0,3921.5,0.0781975]
[1733997626261,2.54997,3921.6,3921.5,0.0781975]
[1733997626423,3.52107,3921.6,3921.5,0.0781975]
[1733997626748,4.09347084,3921.6,3921.5,0.0781975]
[1733997627750,4.09309343,3921.6,3921.5,0.0781975]
[1733997627917,4.79405394,3921.6,3921.5,0.0781975]
[1733997631422,5.04405394,3921.6,3921.5,7.5e-06]
[1733997631849,10.17147887,3921.6,3921.5,7.5e-06]
[1733997632032,10.17147887,3921.6,3919.7,0.9911]
[1733997632033,3.51722,3920.4,3919.7,0.9911]
[1733997632233,3.51722,3920.4,3919.2,1.0427]
[1733997632234,2.55103,3920.0,3919.2,1.0427]
[1733997632463,0.9664,3920.4,3919.2,3.85278199]
[1733997632622,2.55063,3920.6,3919.5,1.0427]
[1733997632833,0.2195448,3920.5,3919.5,3.59404]
[1733997633148,2.55078,3920.4,3919.5,1.0427]
[1733997633778,2.55098,3920.1,3918.9,3.57921]
[1733997634061,1.52894722,3920.3,3918.9,3.57921]
[1733997634062,2.55102,3920.0,3918.9,1.0275]
[1733997634361,1.309478,3920.3,3918.9,1.0275]
[1733997634531,2.551,3920.1,3918.9,3.57923]
[1733997634734,2.95898295,3920.1,3918.9,3.32923]
[1733997636238,0.40798295,3920.1,3919.0,2.55165]
[1733997636835,2.95898295,3920.1,3919.0,2.55165]
[1733997637736,2.55123,3919.7,3918.9,0.7775]
[1733997638057,0.356833,3919.7,3918.9,0.7775]
[1733997638265,1.0171,3920.9,3919.1,0.9801]
[1733997638451,2.55057,3920.7,3919.7,0.9801]
[1733997639238,0.21915538,3920.6,3919.7,0.9801]
[1733997639440,1.0171,3920.9,3919.7,0.9801]
[1733997639441,0.21915538,3920.8,3919.7,0.9801]
[1733997639643,0.21915538,3920.7,3919.7,0.9801]
[1733997639838,0.90250065,3920.8,3919.7,0.9801]
[1733997640152,0.21915616,3920.7,3919.7,3.5313]
[1733997640351,0.24893366,3920.7,3919.7,3.5313]
[1733997640538,0.24893366,3920.7,3919.8,2.55114]
[1733997640738,1.0171,3920.9,3919.7,0.9801]
[1733997640959,1.56110001,3921.3,3920.0,0.55]
[1733997641160,0.21917086,3921.2,3920.2,1.0174]
[1733997641359,1.56110001,3921.3,3920.7,2.55054]
[1733997641580,0.26478772,3921.6,3921.1,2.5503]
[1733997642184,1.56203198,3921.7,3921.2,2.5502]
[1733997642365,0.50163198,3921.7,3920.9,1.0174]
[1733997642583,0.2192784,3922.0,3921.1,2.55025]
[1733997642739,0.2192784,3921.9,3920.5,1.0174]
[1733997643051,0.72866232,3921.8,3920.6,2.55061]
[1733997643241,0.2192784,3921.7,3920.6,2.55061]
[1733997643437,0.58219914,3921.6,3920.5,1.0174]
[1733997643694,2.55013,3921.4,3920.3,2.5508]
[1733997643899,0.2192784,3921.3,3920.2,1.0174]
[1733997644080,0.2192784,3921.2,3920.2,1.0174]
[1733997644399,0.2192784,3921.1,3920.0,2.55101]
[1733997644561,0.21939729,3921.1,3920.0,2.55101]
[1733997644765,0.27696873,3921.0,3920.0,2.55101]
[1733997645095,0.49636688,3921.0,3920.0,2.55101]
[1733997645261,0.21939815,3920.9,3919.6,3.0]
[1733997645462,0.21947072,3920.8,3920.5,2.55068]
[1733997645666,0.21947233,3921.3,3920.6,2.55062]
[1733997645884,0.21947233,3921.3,3920.3,0.9969]
[1733997645885,0.16309094,3921.3,3920.3,0.9969]
[1733997646110,1.0529,3921.8,3920.9,2.55043]
[1733997646332,0.57060424,3921.7,3920.9,2.55037]
[1733997646640,1.0529,3921.8,3921.1,1.0297]
[1733997646784,0.2195686,3921.7,3920.8,3.58013]
[1733997646984,0.2195686,3921.7,3920.8,1.0297]
[1733997646985,0.2195686,3921.6,3920.8,1.0297]
[1733997647184,1.0529,3921.8,3920.8,1.0297]
[1733997647185,1.0529,3921.8,3921.1,2.55028]
[1733997647425,0.21966597,3921.7,3921.1,2.55028]
[1733997647618,1.0529,3921.8,3921.1,2.55028]
[1733997647780,1.0529,3921.8,3920.8,3.58015]
[1733997647981,0.21966597,3921.7,3920.8,3.58015]
[1733997648217,0.60110257,3921.6,3920.8,3.58015]
[1733997648422,0.3814366,3921.6,3920.8,1.0297]
[1733997648683,0.21976049,3921.5,3920.8,1.0297]
[1733997648895,0.2197604,3921.4,3920.8,1.0297]
[1733997649123,0.3814366,3921.6,3920.8,1.0297]
[1733997649350,0.21981957,3921.5,3920.8,1.0297]
[1733997649500,1.0529,3921.8,3920.8,1.0297]
[1733997649699,0.9669692,3921.7,3920.8,1.0297]
[1733997649902,0.21981923,3921.6,3920.8,1.0297]
[1733997650155,0.21981923,3921.5,3920.8,1.0297]
[1733997650363,0.74714997,3921.7,3920.3,2.55081]
[1733997650364,0.21981923,3921.4,3920.3,2.55079]
[1733997650504,0.21981923,3921.3,3920.4,1.02]
[1733997650699,2.81008199,3922.0,3919.9,3.0]
[1733997650700,1.0801,3921.4,3920.1,1.0193]
[1733997650901,0.21984151,3921.3,3920.2,2.55083]
[1733997651105,0.60485066,3921.2,3920.3,3.0]
[1733997651350,0.38500915,3921.2,3920.3,5.55081]
[1733997651495,0.21989019,3921.1,3920.3,5.55081]
[1733997651699,0.21989019,3921.0,3920.3,5.55081]
[1733997651896,0.38500915,3921.2,3920.3,5.55081]
[1733997652125,0.36640079,3921.1,3920.3,5.55081]
[1733997652320,0.21993761,3921.0,3920.3,5.55081]
[1733997652578,0.14651091,3921.1,3920.3,5.55081]
[1733997652736,0.14651091,3921.1,3920.1,1.0193]
[1733997652737,0.14651091,3921.1,3920.4,2.5507]
[1733997653300,1.0801,3921.4,3920.4,2.5507]
[1733997653506,0.2199828,3921.3,3920.4,2.5507]
[1733997653836,0.2199828,3921.2,3920.4,2.5507]
[1733997654038,0.21998243,3921.1,3920.3,3.0]
[1733997654332,1.0801,3921.4,3920.1,1.0193]
[1733997654333,2.55027,3921.2,3920.1,1.0193]
[1733997654532,0.93509106,3921.1,3920.1,1.0193]
[1733997654759,0.9827,3920.9,3920.1,1.0193]
[1733997654904,0.9827,3920.9,3919.8,1.0454]
[1733997654905,0.22002079,3920.8,3919.8,1.0454]
[1733997655236,0.57212163,3920.7,3919.8,1.0454]
[1733997655534,2.55054,3920.8,3919.8,1.0454]
[1733997655535,0.22002079,3920.6,3919.8,1.0454]
[1733997655701,0.22002079,3920.5,3919.8,1.0454]
[1733997655898,0.22002079,3920.4,3919.8,1.0454]
[1733997656127,0.353324,3920.7,3919.8,1.0454]
[1733997656341,0.60872669,3920.6,3919.8,1.0454]
[1733997656545,0.22007029,3920.5,3919.8,1.0454]
[1733997656708,0.22007029,3920.4,3919.8,1.0454]
[1733997656909,0.3886564,3920.6,3919.8,3.59652]
[1733997657144,0.22007084,3920.5,3919.9,2.55107]
[1733997657446,0.22007083,3920.4,3919.8,1.0454]